bitfinex-derivatives/quotes_BTCF0:USTF0_20250427
["timestamp","ask_amount","ask_price","bid_price","bid_amount"]
[1745763107546,0.7125855,94050.0,94049.0,0.3786847]
[1745763108137,0.7175855,94050.0,94049.0,0.3796847]
[1745763108751,0.7205855,94050.0,94049.0,0.3796847]
[1745763115848,0.7205855,94050.0,94049.0,0.4475247]
[1745763116046,0.7205855,94050.0,94049.0,0.4375247]
[1745763116442,0.7205855,94050.0,94049.0,0.3696847]
[1745763116751,0.7205855,94050.0,94049.0,0.4375247]
[1745763117554,0.7205855,94050.0,94049.0,0.4475247]
[1745763121561,0.7205855,94050.0,94049.0,0.4375247]
[1745763122658,0.7205855,94050.0,94049.0,0.22494]
[1745763122954,0.7554855,94050.0,94049.0,0.22494]
[1745763123162,0.7554855,94050.0,94049.0,0.10494]
[1745763124157,0.2126051,94041.0,94040.0,0.00783909]
[1745763124462,0.2126051,94041.0,94037.0,0.07311703]
[1745763124463,0.2126119,94038.0,94037.0,0.07311703]
[1745763124657,0.2126322,94029.0,94028.0,0.70675703]
[1745763125255,0.2126322,94029.0,94028.0,0.82675703]
[1745763125562,0.2872322,94029.0,94028.0,0.82675703]
[1745763126158,0.2872322,94029.0,94028.0,0.86125703]
[1745763126759,0.7872322,94029.0,94028.0,0.89795703]
[1745763126976,0.7872322,94029.0,94028.0,0.89995703]
[1745763127653,0.7882322,94029.0,94028.0,0.90195703]
[1745763127853,0.7882322,94029.0,94028.0,1.12243893]
[1745763129057,0.7882322,94029.0,94028.0,1.11903593]
[1745763130059,0.7882322,94029.0,94028.0,0.97420143]
[1745763130662,0.7882322,94029.0,94028.0,0.95520143]
[1745763130865,0.7882322,94029.0,94028.0,0.2708474]
[1745763131161,0.7882322,94029.0,94028.0,0.2688474]
[1745763131564,0.7882322,94029.0,94028.0,0.2458474]
[1745763131764,0.7882322,94029.0,94028.0,0.4584819]
[1745763131953,0.7882322,94029.0,94028.0,0.1700474]
[1745763132365,0.7882322,94029.0,94028.0,0.2536819]
[1745763133168,0.7882322,94029.0,94028.0,0.3736819]
[1745763134270,0.7882322,94029.0,94028.0,0.3936819]
[1745763137666,0.7504322,94029.0,94028.0,0.3936819]
[1745763143966,0.5378,94029.0,94028.0,0.8608339]
[1745763144272,0.501,94029.0,94028.0,0.8608339]
[1745763144572,0.7136322,94029.0,94028.0,0.8608339]
[1745763146072,0.7136322,94029.0,94028.0,0.5000339]
[1745763146575,0.7136322,94029.0,94028.0,0.5352339]
[1745763147072,0.7136322,94029.0,94028.0,0.4288819]
[1745763149776,0.501,94029.0,94028.0,0.4288819]
[1745763149981,0.38580737,94029.0,94028.0,0.5352339]
[1745763150176,0.38580737,94029.0,94028.0,0.4288819]
[1745763150685,0.38580737,94029.0,94028.0,0.5352339]
[1745763150878,0.38580737,94029.0,94028.0,1.3169839]
[1745763152179,0.001,94029.0,94028.0,0.7852339]
[1745763152368,0.001,94029.0,94028.0,0.5352339]
[1745763156176,0.001,94029.0,94028.0,0.6029939]
[1745763157696,0.001,94029.0,94028.0,0.4288819]
[1745763157995,0.2136322,94029.0,94028.0,0.4288819]
[1745763158199,0.2136322,94029.0,94028.0,0.4322419]
[1745763158595,0.7136322,94029.0,94028.0,0.4322419]
[1745763158797,0.7516322,94029.0,94028.0,0.4322419]
[1745763159505,0.539,94029.0,94028.0,0.4322419]
[1745763159693,0.539,94029.0,94028.0,0.5016419]
[1745763160297,0.7516322,94029.0,94028.0,0.5016419]
[1745763161293,0.539,94029.0,94028.0,0.5016419]
[1745763161796,0.7516322,94029.0,94028.0,0.5016419]
[1745763162001,0.7516322,94029.0,94028.0,0.4669419]
[1745763163798,0.539,94029.0,94028.0,0.4669419]
[1745763164109,0.539,94029.0,94028.0,0.5033419]
[1745763164407,0.539,94029.0,94028.0,0.6096939]
[1745763166703,0.539,94029.0,94028.0,0.9704939]
[1745763168010,0.539,94029.0,94028.0,0.8641419]
[1745763174016,0.539,94029.0,94028.0,0.8277419]
[1745763174714,0.539,94029.0,94028.0,0.7930419]
[1745763176009,0.7516322,94029.0,94028.0,0.7930419]
[1745763176414,0.7516322,94029.0,94028.0,0.7730419]
[1745763176720,0.7516322,94029.0,94028.0,0.7830419]
[1745763181918,0.539,94029.0,94028.0,0.7830419]
[1745763182522,0.574,94029.0,94028.0,0.7830419]
[1745763184019,0.574,94029.0,94028.0,0.8553419]
[1745763184727,0.539,94029.0,94028.0,0.9616939]
[1745763184915,0.3608,94073.0,94028.0,1.5308094]
[1745763185115,0.3608,94073.0,94066.0,0.2125486]
[1745763185116,0.2503463,94067.0,94066.0,0.2125486]
[1745763185425,0.0378,94067.0,94066.0,0.2125486]
[1745763186120,0.5538,94067.0,94066.0,0.2135486]
[1745763186622,0.7813463,94067.0,94066.0,0.2135486]
[1745763187120,0.7813463,94067.0,94066.0,0.001]
[1745763187717,0.7813463,94067.0,94066.0,0.06868]
[1745763188311,0.8184463,94067.0,94066.0,0.06868]
[1745763195016,0.2125644,94059.0,94058.0,0.3608]
[1745763195228,0.2126028,94042.0,94041.0,0.0531509]
[1745763195429,0.2126028,94042.0,94041.0,0.3002851]
[1745763195631,0.2126028,94042.0,94041.0,0.2802851]
[1745763196224,0.2126028,94042.0,94041.0,0.34341595]
[1745763196528,0.7864028,94042.0,94041.0,0.41109595]
[1745763197229,0.7864028,94042.0,94041.0,0.4002851]
[1745763197826,0.7914028,94042.0,94041.0,0.4022851]
[1745763198929,0.7864028,94042.0,94041.0,0.4012851]
[1745763199129,0.7884028,94042.0,94041.0,0.4022851]
[1745763199632,0.7884028,94042.0,94041.0,0.4122851]
[1745763200332,0.7884028,94042.0,94041.0,0.4112851]
[1745763200516,0.7894028,94042.0,94041.0,0.4112851]
[1745763200925,0.7884028,94042.0,94041.0,0.4112851]
[1745763201116,0.7874028,94042.0,94041.0,0.4102851]
[1745763201321,0.7894028,94042.0,94041.0,0.4102851]
[1745763202427,0.7894028,94042.0,94041.0,0.19768]
[1745763202728,0.7894028,94042.0,94041.0,0.18768]
[1745763203134,0.7894028,94042.0,94041.0,0.06768]
[1745763204134,0.7874028,94042.0,94041.0,0.06768]
[1745763204328,0.7894028,94042.0,94041.0,0.06768]
[1745763204526,0.2126164,94036.0,94035.0,0.3608]
[1745763204728,0.2126164,94036.0,94035.0,0.42848]
[1745763205319,0.2845164,94036.0,94035.0,0.42848]
[1745763205733,0.2865164,94036.0,94035.0,0.36648]
[1745763206328,0.7865164,94036.0,94035.0,0.36648]
[1745763207029,0.7865164,94036.0,94035.0,0.36548]
[1745763207229,0.7865164,94036.0,94035.0,0.36648]
[1745763208227,0.7855164,94036.0,94035.0,0.36648]
[1745763208630,0.7865164,94036.0,94035.0,0.36648]
[1745763209520,0.7865164,94036.0,94035.0,0.06868]
[1745763210231,0.7865164,94036.0,94035.0,0.18868]
[1745763213627,0.7865164,94036.0,94035.0,0.4408987]
[1745763214432,0.7865164,94036.0,94035.0,0.22828]
[1745763215921,0.7865164,94036.0,94035.0,0.4408987]
[1745763216122,0.7865164,94036.0,94035.0,0.22828]
[1745763219524,0.7865164,94036.0,94035.0,0.26478]
[1745763224241,0.7865164,94036.0,94035.0,0.121]
[1745763224441,0.2126322,94029.0,94028.0,0.0078474]
[1745763224742,0.2126322,94029.0,94022.0,0.00159523]
[1745763224743,0.2126345,94028.0,94027.0,0.06764]
[1745763225043,0.2883345,94028.0,94027.0,0.06764]
[1745763226242,0.7883345,94028.0,94027.0,0.06764]
[1745763226440,0.2126413,94025.0,94024.0,0.2868429]
[1745763226642,0.2126413,94025.0,94024.0,0.3622721]
[1745763227539,0.2126413,94025.0,94024.0,0.3642721]
[1745763227942,0.2136413,94025.0,94024.0,0.3662721]
[1745763228145,0.2136413,94025.0,94024.0,0.4862721]
[1745763229343,0.7136413,94025.0,94024.0,0.4862721]
[1745763234545,0.7136413,94025.0,94024.0,0.4852721]
[1745763234940,0.7136413,94025.0,94024.0,0.4832721]
[1745763235251,0.7136413,94025.0,94024.0,0.4842721]
[1745763235742,0.7136413,94025.0,94024.0,0.4832721]
[1745763235947,0.7146413,94025.0,94024.0,0.4832721]
[1745763236445,0.7136413,94025.0,94024.0,0.4832721]
[1745763236642,0.7146413,94025.0,94024.0,0.4832721]
[1745763238246,0.7136413,94025.0,94024.0,0.4832721]
[1745763238446,0.7146413,94025.0,94024.0,0.4832721]
[1745763238835,0.7146413,94025.0,94024.0,0.2706292]
[1745763239035,0.7136413,94025.0,94024.0,0.2706292]
[1745763239253,0.7156413,94025.0,94024.0,0.2706292]
[1745763242351,0.7156413,94025.0,94024.0,0.4832727]
[1745763243852,0.7156413,94025.0,94024.0,0.2706292]
[1745763245953,0.7156413,94025.0,94024.0,0.1585892]
[1745763246153,0.7156413,94025.0,94024.0,0.2261892]
[1745763246458,0.7156413,94025.0,94024.0,0.2201892]
[1745763247341,0.7156413,94025.0,94024.0,0.2161892]
[1745763247542,0.7156413,94025.0,94024.0,0.2292892]
[1745763248052,0.7156413,94025.0,94024.0,0.2242892]
[1745763248554,0.7156413,94025.0,94024.0,0.1862892]
[1745763249353,0.7156413,94025.0,94024.0,0.1812892]
[1745763250458,0.7156413,94025.0,94024.0,0.1542892]
[1745763250849,0.7156413,94025.0,94024.0,0.16246563]
[1745763251248,0.7156413,94025.0,94024.0,0.16046563]
[1745763251452,0.7156413,94025.0,94024.0,0.15746563]
[1745763251957,0.7156413,94025.0,94024.0,0.15346563]
[1745763252253,0.503,94025.0,94024.0,0.0676]
[1745763252656,0.768802,94025.0,94024.0,0.0656]
[1745763252952,0.768802,94025.0,94024.0,0.0616]
[1745763253258,0.768802,94025.0,94024.0,0.1656]
[1745763253951,0.810902,94025.0,94024.0,0.1656]
[1745763254146,0.810902,94025.0,94024.0,0.16268578]
[1745763254552,0.810902,94025.0,94024.0,0.15868578]
[1745763254750,0.810902,94025.0,94024.0,0.12808578]
[1745763254954,0.810902,94025.0,94024.0,0.19568578]
[1745763255158,0.810902,94025.0,94024.0,0.12108578]
[1745763255345,0.2126661,94014.0,94011.0,0.0409]
[1745763255658,0.2126661,94014.0,94013.0,0.04]
[1745763255861,0.2126661,94014.0,94013.0,0.1076]
[1745763256249,0.2932661,94014.0,94013.0,0.2276]
[1745763256556,0.2942661,94014.0,94013.0,0.2286]
[1745763257157,0.7942661,94014.0,94013.0,0.2296]
[1745763257556,0.7942661,94014.0,94013.0,0.1662]
[1745763257757,0.7942661,94014.0,94013.0,0.1562]
[1745763258546,0.7942661,94014.0,94013.0,0.0502]
[1745763258951,0.212682,94007.0,94006.0,0.16647689]
[1745763259256,0.212682,94007.0,94006.0,0.32407689]
[1745763259447,0.212682,94007.0,94006.0,0.25407689]
[1745763260251,0.214682,94007.0,94006.0,0.37807689]
[1745763260452,0.714682,94007.0,94006.0,0.37807689]
[1745763260755,0.714682,94007.0,94006.0,0.38891472]
[1745763261153,0.714682,94007.0,94006.0,0.29243783]
[1745763261551,0.714682,94007.0,94006.0,0.30025789]
[1745763263048,0.714682,94007.0,94006.0,0.51294209]
[1745763263958,0.714682,94007.0,94006.0,0.30025789]
[1745763264163,0.714682,94007.0,94006.0,0.51294209]
[1745763266249,0.714682,94007.0,94006.0,0.30025789]
[1745763267847,0.714682,94007.0,94006.0,0.51294209]
[1745763271459,0.714682,94007.0,94006.0,0.30025789]
[1745763271963,0.714682,94007.0,94006.0,0.51294209]
[1745763273050,0.714682,94007.0,94006.0,0.44694209]
[1745763273455,0.714682,94007.0,94006.0,0.43094209]
[1745763273655,0.714682,94007.0,94006.0,0.42094209]
[1745763274560,0.714682,94007.0,94006.0,0.38094209]
[1745763274757,0.7678529,94007.0,94004.0,0.1207719]
[1745763274963,0.7678529,94007.0,94004.0,0.1276]
[1745763274964,0.2126865,94005.0,94004.0,0.1276]
[1745763275266,0.2126865,94005.0,94004.0,0.2476]
[1745763275455,0.2983865,94005.0,94004.0,0.25558247]
[1745763275855,0.2983865,94005.0,94004.0,0.48189697]
[1745763276666,0.8003865,94005.0,94004.0,0.48189697]
[1745763277757,0.5456,94005.0,94004.0,0.48189697]
[1745763279671,0.502,94005.0,94004.0,0.48189697]
[1745763287562,0.502,94005.0,94004.0,0.84269697]
[1745763290772,0.502,94005.0,94004.0,0.48189697]
[1745763290961,0.502,94005.0,94004.0,0.84269697]
[1745763294476,0.7146865,94005.0,94004.0,0.84269697]
[1745763294776,0.7146865,94005.0,94004.0,0.48189697]
[1745763294971,0.7580865,94005.0,94004.0,0.84269697]
[1745763298773,0.5454,94005.0,94004.0,0.84269697]
[1745763304783,0.15910682,94005.0,94004.0,0.94907297]
[1745763305079,0.0859,94027.0,94026.0,0.212639]
[1745763305284,0.2126167,94037.0,94036.0,0.2126141]
[1745763305471,0.2126117,94039.0,94037.0,0.2126141]
[1745763305677,0.3608,94058.0,94037.0,0.2526141]
[1745763305887,0.0423,94057.0,94037.0,0.2526141]
[1745763306083,0.2126002,94044.0,94037.0,0.2526141]
[1745763306384,0.2126111,94039.0,94037.0,0.4243917]
[1745763306584,0.0488,94038.0,94037.0,0.4919517]
[1745763306884,0.0538,94038.0,94037.0,0.4919517]
[1745763307281,0.5538,94038.0,94037.0,0.4919517]
[1745763307483,0.5498,94038.0,94037.0,0.4929517]
[1745763307681,0.5508,94038.0,94037.0,0.4949517]
[1745763308079,0.5958,94038.0,94037.0,0.4949517]
[1745763308691,0.8084119,94038.0,94037.0,0.4537517]
[1745763310081,0.8064119,94038.0,94037.0,0.4507517]
[1745763310288,0.8074119,94038.0,94037.0,0.4517517]
[1745763311088,0.8084119,94038.0,94037.0,0.4517517]
[1745763311487,0.8084119,94038.0,94037.0,0.3841917]
[1745763311792,0.8084119,94038.0,94037.0,0.4517117]
[1745763314692,0.8074119,94038.0,94037.0,0.4507117]
[1745763314880,0.8084119,94038.0,94037.0,0.4517117]
[1745763317090,0.8074119,94038.0,94037.0,0.4517117]
[1745763317291,0.8084119,94038.0,94037.0,0.4517117]
[1745763321690,0.8074119,94038.0,94037.0,0.4517117]
[1745763321889,0.5958,94038.0,94037.0,0.4517117]
[1745763322090,0.5522,94038.0,94037.0,0.4971117]
[1745763322291,0.5522,94038.0,94037.0,0.4295917]
[1745763322492,0.5522,94038.0,94037.0,0.4971117]
[1745763322888,0.5072,94038.0,94037.0,0.60345169]
[1745763323088,0.0434,94054.0,94053.0,0.212578]
[1745763323289,0.0434,94054.0,94053.0,0.680898]
[1745763323989,0.0906,94054.0,94053.0,0.680898]
[1745763324187,0.8081757,94054.0,94053.0,0.892198]
[1745763324394,0.8081757,94054.0,94053.0,0.848298]
[1745763325195,0.8111757,94054.0,94053.0,0.849298]
[1745763325799,0.8081757,94054.0,94053.0,0.849298]
[1745763325990,0.8081757,94054.0,94053.0,0.488498]
[1745763326194,0.8081757,94054.0,94053.0,0.849298]
[1745763326395,0.8041757,94054.0,94053.0,0.85640319]
[1745763327986,0.8041757,94054.0,94053.0,0.49560319]
[1745763328187,0.8041757,94054.0,94053.0,0.81000319]
[1745763328392,0.5916,94054.0,94053.0,0.81000319]
[1745763328587,0.8041757,94054.0,94053.0,0.81000319]
[1745763328799,0.5916,94054.0,94053.0,0.81000319]
[1745763328992,0.8041757,94054.0,94053.0,0.81000319]
[1745763329896,0.501,94054.0,94053.0,1.50172719]
[1745763330091,0.46520073,94054.0,94053.0,1.50172719]
[1745763330297,0.42020073,94054.0,94053.0,2.28333719]
[1745763330498,0.42220073,94054.0,94053.0,2.28333719]
[1745763331088,0.0459,94060.0,94059.0,0.2125644]
[1745763331291,0.0459,94060.0,94059.0,0.6433644]
[1745763331503,0.0459,94060.0,94059.0,0.7496804]
[1745763332005,0.0459,94060.0,94059.0,0.8364804]
[1745763332300,0.0459,94060.0,94059.0,0.9564804]
[1745763332301,0.5459,94060.0,94059.0,0.9564804]
[1745763332606,0.5469,94060.0,94059.0,0.9574804]
[1745763333905,0.5499,94060.0,94059.0,0.9584804]
[1745763334808,0.504,94060.0,94059.0,0.9584804]
[1745763335309,0.5498,94060.0,94059.0,0.9584804]
[1745763339106,0.5498,94060.0,94059.0,1.3192804]
[1745763340596,0.5963,94060.0,94059.0,1.3192804]
[1745763340904,0.5963,94060.0,94059.0,1.3867604]
[1745763341103,0.5498,94060.0,94059.0,1.3867604]
[1745763342508,0.5498,94060.0,94059.0,0.6651604]
[1745763342699,0.5498,94060.0,94059.0,1.3867604]
[1745763344921,0.597,94060.0,94059.0,1.3867604]
[1745763345111,0.597,94060.0,94059.0,0.5588444]
[1745763345311,0.597,94060.0,94059.0,1.2804444]
[1745763346522,0.597,94060.0,94059.0,1.1936444]
[1745763346913,0.597,94060.0,94059.0,1.1261644]
[1745763347220,0.597,94060.0,94059.0,1.0736444]
[1745763350324,0.6426,94060.0,94059.0,1.0736444]
[1745763354722,0.6426,94060.0,94059.0,0.86108]
[1745763354921,0.8551621,94060.0,94059.0,0.86108]
[1745763355129,0.2657088,94058.0,94057.0,0.06748]
[1745763355328,0.2125667,94058.0,94057.0,0.06748]
[1745763356121,0.2125825,94051.0,94050.0,0.06748]
[1745763356431,0.2126073,94040.0,94039.0,0.06748]
[1745763356627,0.0531499,94044.0,94026.0,0.3608]
[1745763356628,0.2126141,94037.0,94036.0,0.21036453]
[1745763356825,0.2126141,94037.0,94036.0,0.23822814]
[1745763357129,0.3326141,94037.0,94036.0,0.23822814]
[1745763358434,0.3336141,94037.0,94036.0,0.24022814]
[1745763358632,0.3356141,94037.0,94036.0,0.02986361]
[1745763359435,0.8356141,94037.0,94036.0,0.02986361]
[1745763359832,0.8801141,94037.0,94036.0,0.02986361]
[1745763360036,0.9253141,94037.0,94036.0,0.02886361]
[1745763361841,0.9253141,94037.0,94036.0,0.24148001]
[1745763362229,0.9253141,94037.0,94036.0,0.02886361]
[1745763362733,0.9694141,94037.0,94036.0,0.02886361]
[1745763363041,0.9694141,94037.0,94036.0,0.24148001]
[1745763363337,0.8494141,94037.0,94036.0,0.24148001]
[1745763364833,0.8053141,94037.0,94036.0,0.24148001]
[1745763368731,0.5927,94037.0,94036.0,0.24148001]
[1745763368931,0.8053141,94037.0,94036.0,0.24148001]
[1745763369437,0.5927,94037.0,94036.0,0.24148001]
[1745763369943,0.5927,94037.0,94036.0,0.28608001]
[1745763370329,0.5927,94037.0,94036.0,0.40608001]
[1745763370639,0.5927,94037.0,94036.0,0.45148001]
[1745763372035,0.5482,94037.0,94036.0,0.45148001]
[1745763374448,0.503,94037.0,94036.0,0.45148001]
[1745763377249,0.503,94037.0,94036.0,0.81228001]
[1745763380142,0.0481,94054.0,94053.0,0.212578]
[1745763380341,0.0481,94054.0,94053.0,0.583378]
[1745763380640,0.0473,94059.0,94058.0,0.2125667]
[1745763380845,0.0473,94059.0,94058.0,0.2325667]
[1745763381237,0.0473,94059.0,94058.0,0.3218667]
[1745763381749,0.0473,94059.0,94058.0,0.0637]
[1745763381750,0.2598644,94059.0,94058.0,0.0637]
[1745763381942,0.2598644,94059.0,94058.0,0.08091902]
[1745763382254,0.7598644,94059.0,94058.0,0.14839902]
[1745763382638,0.7648644,94059.0,94058.0,0.14939902]
[1745763383450,0.7648644,94059.0,94058.0,0.08948]
[1745763383751,0.7708644,94059.0,94058.0,0.08948]
[1745763385049,0.7708644,94059.0,94058.0,0.10694856]
[1745763385249,0.7708644,94059.0,94058.0,0.08948]
[1745763385443,0.87718041,94059.0,94058.0,0.001]
[1745763385648,0.87718041,94059.0,94034.0,0.00159516]
[1745763385649,0.2657225,94053.0,94052.0,0.06748]
[1745763385842,0.2657225,94053.0,94045.0,0.3608]
[1745763385843,0.2125938,94046.0,94045.0,0.3608]
[1745763386043,0.2125938,94046.0,94045.0,0.44824]
[1745763386355,0.3075915,94047.0,94046.0,0.2125938]
[1745763386554,0.3075915,94047.0,94046.0,0.2789938]
[1745763386962,0.3075915,94047.0,94046.0,0.3464338]
[1745763387252,0.8075915,94047.0,94046.0,0.4664338]
[1745763387750,0.595,94047.0,94046.0,0.4664338]
[1745763387957,0.599,94047.0,94046.0,0.5150338]
[1745763388255,0.5515,94047.0,94046.0,0.5150338]
[1745763389254,0.5545,94047.0,94046.0,0.5160338]
[1745763389855,0.27732208,94047.0,94046.0,0.6223658]
[1745763390743,0.007,94047.0,94046.0,0.6223658]
[1745763403165,0.007,94047.0,94046.0,1.3439658]
[1745763404267,0.007,94047.0,94046.0,1.5205658]
[1745763404575,0.007,94047.0,94046.0,1.3439658]
[1745763409664,0.0466,94054.0,94053.0,0.212578]
[1745763409864,0.0466,94054.0,94053.0,0.302578]
[1745763410061,0.0466,94054.0,94053.0,0.422578]
[1745763410855,0.0466,94054.0,94053.0,0.473278]
[1745763411168,0.0466,94054.0,94053.0,0.474278]
[1745763411367,0.0496,94054.0,94053.0,0.474278]
[1745763412265,0.0536,94054.0,94053.0,0.475278]
[1745763413069,0.0536,94054.0,94053.0,0.526378]
[1745763415260,0.0536,94054.0,94053.0,0.475278]
[1745763417265,0.0536,94054.0,94053.0,0.542718]
[1745763417964,0.0536,94054.0,94053.0,1.264318]
[1745763421171,0.1015,94054.0,94053.0,1.026178]
[1745763421370,0.1015,94054.0,94053.0,1.093618]
[1745763421569,0.0536,94054.0,94053.0,1.093618]
[1745763423176,0.0536,94054.0,94053.0,1.213618]
[1745763425278,0.0536,94054.0,94053.0,1.093618]
[1745763425776,0.0544235,94091.0,94053.0,0.88104]
[1745763426074,0.2125215,94078.0,94077.0,0.3608]
[1745763426266,0.2125215,94078.0,94077.0,0.4382]
[1745763426465,0.4625215,94078.0,94077.0,0.4382]
[1745763426678,0.9940015,94078.0,94077.0,0.4382]
[1745763427092,0.6336215,94078.0,94077.0,0.4382]
[1745763427273,1.1336215,94078.0,94077.0,0.4382]
[1745763427475,1.1386215,94078.0,94077.0,0.4392]
[1745763427868,0.8886215,94078.0,94077.0,0.4392]
[1745763428075,0.6761,94078.0,94077.0,0.4392]
[1745763428475,0.8886215,94078.0,94077.0,0.4392]
[1745763428678,0.9447215,94078.0,94077.0,0.4392]
[1745763429779,0.9447215,94078.0,94077.0,0.45643403]
[1745763429980,0.9447215,94078.0,94077.0,0.44643403]
[1745763430481,0.8936215,94078.0,94077.0,0.44643403]
[1745763430674,0.6811,94078.0,94077.0,0.65895773]
[1745763430874,0.6811,94078.0,94077.0,0.66895773]
[1745763431186,0.51,94078.0,94077.0,0.66895773]
[1745763431686,0.45827932,94078.0,94077.0,0.66895773]
[1745763431886,0.50827932,94078.0,94077.0,0.77205773]
[1745763432090,0.06,94078.0,94077.0,0.89205773]
[1745763432383,0.007,94078.0,94077.0,0.89205773]
[1745763432685,0.0013,94091.0,94090.0,0.2124944]
[1745763432686,0.0476,94091.0,94090.0,0.2124944]
[1745763432888,0.0476,94091.0,94090.0,0.6332944]
[1745763433388,0.0476,94091.0,94090.0,0.6814944]
[1745763434091,0.0516,94091.0,94090.0,0.6814944]
[1745763434388,0.0516,94091.0,94090.0,0.7325944]
[1745763435283,0.004,94091.0,94090.0,0.7325944]
[1745763435585,0.006,94091.0,94090.0,0.7325944]
[1745763435780,0.006,94091.0,94090.0,0.74041837]
[1745763436180,0.006,94091.0,94090.0,0.86041837]
[1745763440789,0.006,94091.0,94090.0,0.87667837]
[1745763440994,0.006,94091.0,94090.0,0.80931837]
[1745763441192,0.006,94091.0,94090.0,0.87667837]
[1745763442695,0.006,94091.0,94090.0,1.23747837]
[1745763443087,0.006,94091.0,94090.0,1.17011837]
[1745763443497,0.006,94091.0,94090.0,1.23747837]
[1745763446299,0.0992,94097.0,94096.0,0.2124808]
[1745763446597,0.0992,94097.0,94096.0,0.2624808]
[1745763447600,0.1042,94097.0,94096.0,0.2624808]
[1745763448405,0.1072,94097.0,94096.0,0.2624808]
[1745763450005,0.1072,94097.0,94096.0,0.3298408]
[1745763453903,0.1072,94097.0,94096.0,0.2624808]
[1745763454202,0.1072,94097.0,94096.0,1.0514408]
[1745763455405,0.008,94097.0,94096.0,1.0514408]
[1745763455705,0.008,94097.0,94096.0,1.1044408]
[1745763455906,0.1106,94097.0,94096.0,1.1044408]
[1745763456904,0.1086,94097.0,94096.0,1.1044408]
[1745763457810,0.1076,94097.0,94096.0,1.1044408]
[1745763460113,0.01340662,94115.0,94114.0,0.2124402]
[1745763460412,0.053104,94125.0,94114.0,0.43816]
[1745763460614,0.2124326,94118.0,94114.0,0.43816]
[1745763461209,0.2124335,94117.0,94114.0,0.43816]
[1745763461415,0.011,94115.0,94114.0,0.43916]
[1745763461808,0.0638,94115.0,94114.0,0.43916]
[1745763462007,0.0528,94115.0,94114.0,0.43916]
[1745763462613,0.0638,94115.0,94114.0,0.43916]
[1745763462815,0.0638,94115.0,94114.0,0.6516002]
[1745763463415,0.5638,94115.0,94114.0,0.6516002]
[1745763463621,0.5728,94115.0,94114.0,0.6526002]
[1745763463802,0.5728,94115.0,94114.0,0.668464]
[1745763465304,0.5728,94115.0,94114.0,0.601104]
[1745763465508,0.5728,94115.0,94114.0,0.668424]
[1745763466519,0.52,94115.0,94114.0,0.668424]
[1745763466715,0.52,94115.0,94114.0,1.029224]
[1745763466917,0.02,94115.0,94114.0,1.029224]
[1745763467220,0.02,94115.0,94114.0,1.202524]
[1745763467720,0.0994,94120.0,94119.0,0.2124289]
[1745763467920,0.0994,94120.0,94119.0,0.2524289]
[1745763469111,0.0994,94120.0,94119.0,0.3197489]
[1745763469420,0.5994,94120.0,94119.0,0.3197489]
[1745763469921,0.6004,94120.0,94119.0,0.3197489]
[1745763474325,0.6004,94120.0,94119.0,0.6805489]
[1745763475118,0.6004,94120.0,94119.0,0.7343489]
[1745763476624,0.6004,94120.0,94119.0,0.6670289]
[1745763476921,0.6004,94120.0,94119.0,0.7343489]
[1745763480524,0.91907461,94120.0,94119.0,0.46812]
[1745763480722,0.3186543,94116.0,94115.0,0.06732]
[1745763480923,0.2124605,94105.0,94104.0,0.3608]
[1745763481223,0.2124572,94107.0,94104.0,0.43812]
[1745763481417,0.1064,94106.0,94105.0,0.051]
[1745763481622,0.1064,94106.0,94105.0,0.09682535]
[1745763481821,0.1064,94106.0,94105.0,0.30928585]
[1745763482323,0.3188582,94106.0,94105.0,0.30928585]
[1745763482528,0.3188582,94106.0,94105.0,0.09982535]
[1745763483120,0.8188582,94106.0,94105.0,0.09982535]
[1745763483319,0.6064,94106.0,94105.0,0.31228585]
[1745763483525,0.6064,94106.0,94105.0,0.31428585]
[1745763484929,0.6064,94106.0,94105.0,0.31128585]
[1745763485131,0.6064,94106.0,94105.0,0.67508585]
[1745763485532,0.8188582,94106.0,94105.0,0.74240585]
[1745763485723,0.8188582,94106.0,94105.0,0.52994535]
[1745763486125,0.6064,94106.0,94105.0,0.74240585]
[1745763487148,0.6064,94106.0,94105.0,0.79508585]
[1745763487338,0.6064,94106.0,94105.0,0.86240585]
[1745763487635,0.6064,94106.0,94105.0,0.86140585]
[1745763488336,0.5518,94106.0,94105.0,0.74140585]
[1745763488838,0.5,94106.0,94105.0,0.74140585]
[1745763489340,0.5,94106.0,94105.0,0.86140585]
[1745763491140,0.1066,94115.0,94114.0,0.2124402]
[1745763491342,0.1066,94115.0,94114.0,0.5932402]
[1745763492139,0.1066,94115.0,94114.0,0.6437402]
[1745763492544,0.1066,94115.0,94114.0,0.4313]
[1745763493036,0.1066,94115.0,94114.0,0.6437402]
[1745763493640,0.1066,94115.0,94114.0,0.2829402]
[1745763493841,0.1066,94115.0,94114.0,0.6437402]
[1745763494948,0.1066,94115.0,94114.0,0.6447402]
[1745763495133,0.1066,94115.0,94114.0,0.2839402]
[1745763495333,0.1066,94115.0,94114.0,0.6447402]
[1745763502445,0.1066,94115.0,94114.0,0.2839402]
[1745763502636,0.1066,94115.0,94114.0,0.6447402]
[1745763503144,0.1066,94115.0,94114.0,0.2839402]
[1745763503341,0.1066,94115.0,94114.0,0.6447402]
[1745763503740,0.3190379,94115.0,94114.0,0.4323]
[1745763504542,0.3190379,94115.0,94114.0,0.49962]
[1745763505144,0.8190379,94115.0,94114.0,0.7120602]
[1745763505347,0.6066,94115.0,94114.0,0.7120602]
[1745763507156,0.5533,94115.0,94114.0,0.7120602]
[1745763507451,0.5,94115.0,94114.0,0.7674602]
[1745763508258,0.5,94115.0,94114.0,0.8874602]
[1745763509155,0.5,94115.0,94114.0,0.7674602]
[1745763510256,0.5,94115.0,94114.0,0.8874602]
[1745763511158,0.5,94115.0,94114.0,0.7674602]
[1745763517171,0.5,94115.0,94114.0,0.8874602]
[1745763518163,0.5,94115.0,94114.0,0.7674602]
[1745763520261,0.5,94115.0,94114.0,0.7120602]
[1745763521461,0.5,94115.0,94114.0,0.7120202]
[1745763522452,0.5,94115.0,94114.0,0.3512202]
[1745763522648,0.5,94115.0,94114.0,0.7120202]
[1745763523469,0.5,94115.0,94114.0,0.3512202]
[1745763523650,0.5,94115.0,94114.0,0.7120202]
[1745763525467,0.5,94115.0,94114.0,0.3512202]
[1745763525669,0.5,94115.0,94114.0,0.7120202]
[1745763526062,0.5,94115.0,94114.0,0.3512202]